fUST/lending_fUST_20250207
["ID","MTS","AMOUNT","RATE_DAILY","PERIOD"]
[352037217,1738894232717,-1056.9,0.00013698,2]
[352037219,1738894232726,-579.16846205,0.00013698,2]
[352037221,1738894232735,-500.0,0.00013698,2]
[352037223,1738894232746,-516.37223743,0.00013698,2]
[352037224,1738894232758,-500.0,0.00013698,2]
[352037227,1738894232770,-500.0,0.00013698,2]
[352037229,1738894232783,-178.2704704,0.00013698,2]
[352037231,1738894232795,-500.0,0.00013698,2]
[352037233,1738894232807,-503.383448,0.00013698,2]
[352037235,1738894232818,-503.03167723,0.00013698,2]
[352037237,1738894232836,-517.42009052,0.00013698,2]
[352037239,1738894232846,-562.58652193,0.00013698,2]
[352037241,1738894232858,-500.0,0.00013698,2]
[352037243,1738894232870,-500.0,0.00013698,2]
[352037245,1738894232882,-500.0,0.00013698,2]
[352037247,1738894232893,-500.0,0.00013698,2]
[352037249,1738894232906,-500.0,0.00013698,2]
[352037251,1738894232921,-505.57388897,0.00013698,2]
[352037253,1738894232933,-239.05859296,0.00013698,2]
[352037255,1738894232944,-525.34684629,0.00013698,2]
[352037257,1738894232957,-563.95,0.00013698,2]
[352037260,1738894232969,-500.0,0.00013698,2]
[352037262,1738894232980,-500.0,0.00013698,2]
[352037264,1738894232992,-569.82,0.00013698,2]
[352037266,1738894233003,-588.76,0.00013698,2]
[352037268,1738894233014,-730.35,0.00013698,2]
[352037269,1738894233025,-516.75630867,0.00013698,2]
[352037271,1738894233037,-366.01001901,0.00013698,2]
[352037274,1738894233049,-217.73837201,0.00013698,2]
[352037276,1738894233061,-582.09647396,0.00013698,2]
[352037278,1738894233073,-500.0,0.00013698,2]
[352037280,1738894233086,-573.10892055,0.00013698,2]
[352037282,1738894233099,-501.67784105,0.00013698,2]
[352037284,1738894233111,-500.0,0.00013698,2]
[352037286,1738894233122,-323.68685957,0.00013698,2]
[352037288,1738894233134,-1457.57,0.00013698,2]
[352037290,1738894233145,-500.0,0.00013698,2]
[352037292,1738894233156,-500.0,0.00013698,2]
[352037294,1738894233167,-892.67,0.00013698,2]
[352037296,1738894233179,-576.99811536,0.00013698,2]
[352037298,1738894233191,-514.69141456,0.00013698,2]
[352037300,1738894233201,-197.30647147,0.00013698,2]
[352037302,1738894233213,-500.0,0.00013698,2]
[352037304,1738894233226,-597.56197223,0.00013698,2]
[352037307,1738894233239,-526.59918339,0.00013698,2]
[352037309,1738894233250,-541.35863974,0.00013698,2]
[352037311,1738894233264,-473.03037836,0.00013698,2]
[352037313,1738894233275,-500.0,0.00013698,2]
[352037315,1738894233288,-500.0,0.00013698,2]
[352037317,1738894233300,-500.0,0.00013698,2]
[352037319,1738894233312,-500.0,0.00013698,2]
[352037321,1738894233324,-500.0,0.00013698,2]
[352037323,1738894233337,-500.0,0.00013698,2]
[352037325,1738894233349,-5439.96,0.00013698,2]
[352037327,1738894233359,-337.95774601,0.00013698,2]
[352037330,1738894233370,-1165.22,0.00013698,2]
[352037331,1738894233382,-212.64869237,0.00013698,2]
[352037333,1738894233391,-500.0,0.00013698,2]
[352037335,1738894233403,-500.0,0.00013698,2]
[352037337,1738894233414,-562.7,0.00013698,2]
[352037340,1738894233426,-500.0,0.00013698,2]
[352037342,1738894233438,-937.9,0.00013698,2]
[352037344,1738894233450,-500.0,0.00013698,2]
[352037346,1738894233462,-485.13612821,0.00013698,2]
[352037348,1738894233472,-4320.87,0.00013698,2]
[352037350,1738894233482,-500.0,0.00013698,2]
[352037352,1738894233492,-635.81,0.00013698,2]
[352037354,1738894233503,-151.6,0.00013699,2]
[352037356,1738894233513,-317.406446,0.00013699,2]
[352037358,1738894233524,-500.0,0.00013835,2]
[352037360,1738894233536,-599.2875589,0.00013835,2]
[352037362,1738894233546,-240.13217542,0.00013835,2]
[352037364,1738894233557,-500.0,0.00013835,2]
[352037366,1738894233566,-500.0,0.00013835,2]
[352037368,1738894233576,-500.0,0.00013835,2]
[352037370,1738894233586,-500.0,0.00013835,2]
[352037372,1738894233596,-591.89,0.00013835,2]
[352037374,1738894233606,-283.12609429,0.00013835,2]
[352037376,1738894233617,-644.76286257,0.00013835,2]
[352037378,1738894233627,-500.0,0.00013835,2]
[352037380,1738894233638,-619.4,0.00013835,2]
[352037382,1738894233648,-310.49290861,0.00013835,2]
[352037384,1738894233659,-211.71304094,0.00013835,2]
[352037391,1738894233731,-288.28695906,0.00013835,2]
[352037394,1738894233743,-500.0,0.00013835,2]
[352037396,1738894233753,-461.46465651,0.00013835,2]
[352037398,1738894233764,-500.0,0.00013835,2]
[352037400,1738894233775,-500.0,0.00013835,2]
[352037402,1738894233785,-500.0,0.00013835,2]
[352037404,1738894233796,-207.44497077,0.00013835,2]
[352037406,1738894233807,-217.19594583,0.00013835,2]
[352037408,1738894233818,-500.0,0.00013835,2]
[352037410,1738894233829,-490.82349288,0.00013835,2]
[352037412,1738894233840,-500.0,0.00013835,2]
[352037414,1738894233851,-1056.9,0.00013835,2]
[352037416,1738894233862,-284.50629122,0.00013835,2]
[352037418,1738894233872,-500.0,0.00013835,2]
[352037420,1738894233882,-418.26355649,0.00013835,2]
[352037832,1738894238063,-81.73644351,0.00013835,2]
[352037833,1738894238074,-343.80344261,0.00013835,2]
[352037834,1738894238085,-421.56739985,0.00013835,2]
[352037835,1738894238095,-500.0,0.00013835,2]
[352037836,1738894238106,-500.0,0.00013835,2]
[352037837,1738894238116,-500.0,0.00013835,2]
[352037838,1738894238127,-500.0,0.00013835,2]
[352037839,1738894238138,-569.82,0.00013835,2]
[352037840,1738894238149,-730.35,0.00013835,2]
[352037841,1738894238161,-500.0,0.00013835,2]
[352037842,1738894238171,-500.0,0.00013835,2]
[352037843,1738894238182,-1457.57,0.00013835,2]
[352037844,1738894238193,-500.0,0.00013835,2]
[352037845,1738894238205,-500.0,0.00013835,2]
[352037847,1738894238215,-892.67,0.00013835,2]
[352037849,1738894238226,-500.0,0.00013835,2]
[352037851,1738894238236,-500.0,0.00013835,2]
[352037853,1738894238247,-500.0,0.00013835,2]
[352037855,1738894238258,-500.0,0.00013835,2]
[352037857,1738894238269,-500.0,0.00013835,2]
[352037859,1738894238281,-437.24457948,0.00013835,2]
[352037861,1738894238292,-500.0,0.00013835,2]
[352037864,1738894238303,-5439.96,0.00013835,2]
[352037866,1738894238314,-1165.22,0.00013835,2]
[352037868,1738894238325,-500.0,0.00013835,2]
[352037870,1738894238336,-500.0,0.00013835,2]
[352037872,1738894238346,-562.7,0.00013835,2]
[352037874,1738894238357,-500.0,0.00013835,2]
[352037876,1738894238369,-937.9,0.00013835,2]
[352037879,1738894238380,-500.0,0.00013835,2]
[352037881,1738894238390,-4320.87,0.00013835,2]
[352037883,1738894238402,-500.0,0.00013835,2]
[352037885,1738894238413,-635.81,0.00013835,2]
[352037887,1738894238424,-321.36303747,0.00013872,2]
[352037889,1738894238434,-15433.16962403,0.00013972,5]
[352037891,1738894238443,-500.0,0.00013972,2]
[352037893,1738894238453,-609.41908857,0.00013972,2]
[352037915,1738894238646,-500.0,0.00013972,2]
[352037917,1738894238656,-186.49422426,0.00013972,2]
[352037919,1738894238665,-500.0,0.00013972,2]
[352037921,1738894238674,-500.0,0.00013972,2]
[352037923,1738894238684,-619.4,0.00013972,2]
[352037925,1738894238693,-500.0,0.00013972,2]
[352037927,1738894238702,-500.0,0.00013972,2]
[352037929,1738894238712,-221.86,0.00013972,2]
[352037931,1738894238721,-500.0,0.00013972,2]
[352037933,1738894238730,-520.94301505,0.00013972,2]
[352037935,1738894238739,-500.0,0.00013972,2]
[352037937,1738894238748,-1056.9,0.00013972,2]
[352037939,1738894238758,-500.0,0.00013972,2]
[352037941,1738894238767,-500.0,0.00013972,2]
[352037943,1738894238776,-500.0,0.00013972,2]
[352037945,1738894238786,-500.0,0.00013972,2]
[352037947,1738894238795,-500.0,0.00013972,2]
[352037949,1738894238804,-500.0,0.00013972,2]
[352037951,1738894238814,-569.82,0.00013972,2]
[352037953,1738894238823,-730.35,0.00013972,2]
[352037955,1738894238833,-500.0,0.00013972,2]
[352037957,1738894238843,-292.6273114,0.00013972,2]
[352037959,1738894238853,-1457.57,0.00013972,2]
[352037961,1738894238862,-500.0,0.00013972,2]
[352037963,1738894238871,-321.92430919,0.00013972,2]
[352037965,1738894238881,-892.67,0.00013972,2]
[352037967,1738894238890,-500.0,0.00013972,2]
[352037969,1738894238900,-500.0,0.00013972,2]
[352037971,1738894238911,-500.0,0.00013972,2]
[352037973,1738894238921,-500.0,0.00013972,2]
[352037975,1738894238932,-500.0,0.00013972,2]
[352037977,1738894238941,-500.0,0.00013972,2]
[352037979,1738894238950,-5439.96,0.00013972,2]
[352037981,1738894238960,-1165.22,0.00013972,2]
[352037983,1738894238969,-534.38533354,0.00013972,2]
[352037985,1738894238979,-520.77648457,0.00013972,2]
[352037987,1738894238988,-562.7,0.00013972,2]
[352037989,1738894238998,-500.0,0.00013972,2]
[352037991,1738894239007,-937.9,0.00013972,2]
[352037993,1738894239016,-500.0,0.00013972,2]
[352037995,1738894239026,-4320.87,0.00013972,2]
[352037997,1738894239037,-523.94659901,0.00013972,2]
[352037999,1738894239046,-635.81,0.00013972,2]
[352038001,1738894239056,-400.0,0.00013973,2]
[352038003,1738894239065,-151.07277673,0.00013973,2]
[352038005,1738894239074,-3200.0,0.00014,2]
[352038007,1738894239084,-321.36303747,0.00014004,2]
[352038009,1738894239094,-151.854227,0.00014046,2]
[352038011,1738894239103,-151.0,0.00014046,2]
[352038013,1738894239112,-756.380816,0.00014046,2]
[352038015,1738894239122,-756.380816,0.00014046,2]
[352038017,1738894239131,-152.757508,0.00014046,2]
[352038019,1738894239140,-151.0,0.00014046,2]
[352038021,1738894239150,-151.0,0.00014046,2]
[352038023,1738894239160,-3000.0,0.00014047,2]
[352038025,1738894239169,-151.0,0.00014108,2]
[352038027,1738894239180,-151.0,0.00014108,2]
[352038029,1738894239189,-151.0,0.00014108,2]
[352038031,1738894239204,-151.0,0.00014108,2]
[352038033,1738894239213,-500.0,0.00014109,2]
[352038035,1738894239223,-523.23929299,0.00014109,2]
[352038037,1738894239232,-310.13450952,0.00014109,2]
[352038039,1738894239243,-429.22125676,0.00014109,2]
[352038041,1738894239253,-619.4,0.00014109,2]
[352038043,1738894239263,-626.47691191,0.00014109,2]
[352038045,1738894239274,-500.0,0.00014109,2]
[352038047,1738894239283,-500.0,0.00014109,2]
[352038049,1738894239293,-493.08601292,0.00014109,2]
[352038051,1738894239303,-1056.9,0.00014109,2]
[352038053,1738894239313,-500.0,0.00014109,2]
[352038055,1738894239322,-500.0,0.00014109,2]
[352038057,1738894239331,-444.41276479,0.00014109,2]
[352038059,1738894239341,-500.0,0.00014109,2]
[352038061,1738894239350,-401.59007725,0.00014109,2]
[352038063,1738894239359,-500.0,0.00014109,2]
[352038065,1738894239370,-569.82,0.00014109,2]
[352038067,1738894239379,-151.0,0.00014109,2]
[352038069,1738894239389,-151.0,0.00014109,2]
[352038071,1738894239399,-151.0,0.00014109,2]
[352038073,1738894239412,-151.642055,0.00014109,2]
[352038075,1738894239421,-730.35,0.00014109,2]
[352038077,1738894239430,-151.0,0.00014109,2]
[352038079,1738894239440,-500.0,0.00014109,2]
[352038081,1738894239449,-372.07485,0.00014109,2]
[352038083,1738894239458,-372.07485,0.00014109,2]
[352038085,1738894239467,-1457.57,0.00014109,2]
[352038087,1738894239476,-328.72349718,0.00014109,2]
[352038089,1738894239485,-892.67,0.00014109,2]
[352038091,1738894239494,-500.0,0.00014109,2]
[352038094,1738894239504,-500.0,0.00014109,2]
[352038096,1738894239513,-500.0,0.00014109,2]
[352038098,1738894239522,-500.0,0.00014109,2]
[352038100,1738894239532,-500.0,0.00014109,2]
[352038102,1738894239541,-500.0,0.00014109,2]
[352038104,1738894239551,-5439.96,0.00014109,2]
[352038106,1738894239560,-1165.22,0.00014109,2]
[352038108,1738894239569,-562.7,0.00014109,2]
[352038110,1738894239578,-244.47227852,0.00014109,2]
[352038112,1738894239588,-937.9,0.00014109,2]
[352038114,1738894239597,-500.0,0.00014109,2]
[352038116,1738894239606,-4320.87,0.00014109,2]
[352038118,1738894239615,-635.81,0.00014109,2]
[352038121,1738894239624,-344.60041993,0.00014129,2]
[352038124,1738894239634,-321.36303747,0.00014136,2]
[352038126,1738894239643,-317.0,0.00014137,2]
[352038128,1738894239652,-317.0,0.00014137,2]
[352038130,1738894239663,-317.0,0.00014137,2]
[352038132,1738894239673,-317.0,0.00014137,2]
[352038134,1738894239682,-317.0,0.00014137,2]
[352038136,1738894239692,-317.0,0.00014137,2]
[352038138,1738894239701,-317.0,0.00014137,2]
[352038140,1738894239711,-317.0,0.00014137,2]
[352038142,1738894239720,-317.0,0.00014137,2]
[352038144,1738894239729,-317.0,0.00014137,2]
[352038146,1738894239738,-317.0,0.00014137,2]
[352038148,1738894239748,-317.0,0.00014137,2]
[352038150,1738894239757,-317.0,0.00014137,2]
[352038152,1738894239767,-317.0,0.00014137,2]
[352038154,1738894239776,-266.0,0.00014137,2]
[352038156,1738894239786,-266.0,0.00014137,2]
[352038158,1738894239795,-266.0,0.00014137,2]
[352038160,1738894239804,-266.0,0.00014137,2]
[352038162,1738894239813,-266.0,0.00014137,2]
[352038164,1738894239822,-266.0,0.00014137,2]
[352038166,1738894239831,-266.0,0.00014137,2]
[352038168,1738894239840,-266.0,0.00014137,2]
[352038170,1738894239849,-266.0,0.00014137,2]
[352038172,1738894239858,-266.0,0.00014137,2]
[352038174,1738894239869,-266.0,0.00014137,2]
[352038176,1738894239878,-266.0,0.00014137,2]
[352038178,1738894239887,-266.0,0.00014137,2]
[352038180,1738894239896,-266.0,0.00014137,2]
[352038182,1738894239905,-317.0,0.00014137,2]
[352038184,1738894239915,-317.0,0.00014137,2]
[352038186,1738894239925,-317.0,0.00014137,2]
[352038188,1738894239934,-317.0,0.00014137,2]
[352038190,1738894239943,-317.0,0.00014137,2]
[352038192,1738894239952,-317.0,0.00014137,2]
[352038194,1738894239962,-317.0,0.00014137,2]
[352038196,1738894239971,-317.0,0.00014137,2]
[352038198,1738894239980,-317.0,0.00014137,2]
[352038200,1738894239989,-317.0,0.00014137,2]
[352038202,1738894239999,-317.0,0.00014137,2]
[352038204,1738894240008,-317.0,0.00014137,2]
[352038206,1738894240018,-317.0,0.00014137,2]
[352038208,1738894240027,-317.0,0.00014137,2]
[352038210,1738894240036,-266.0,0.00014137,2]
[352038212,1738894240045,-266.0,0.00014137,2]
[352038214,1738894240054,-266.0,0.00014137,2]
[352038216,1738894240063,-266.0,0.00014137,2]
[352038218,1738894240073,-266.0,0.00014137,2]
[352038220,1738894240082,-266.0,0.00014137,2]
[352038222,1738894240091,-266.0,0.00014137,2]
[352038224,1738894240100,-266.0,0.00014137,2]
[352038225,1738894240109,-266.0,0.00014137,2]
[352038227,1738894240118,-266.0,0.00014137,2]
[352038229,1738894240127,-266.0,0.00014137,2]
[352038231,1738894240136,-266.0,0.00014137,2]
[352038233,1738894240145,-266.0,0.00014137,2]
[352038235,1738894240154,-266.0,0.00014137,2]
[352038237,1738894240166,-317.0,0.00014137,2]
[352038239,1738894240175,-317.0,0.00014137,2]
[352038241,1738894240185,-317.0,0.00014137,2]
[352038243,1738894240194,-317.0,0.00014137,2]
[352038245,1738894240204,-317.0,0.00014137,2]
[352038247,1738894240215,-317.0,0.00014137,2]
[352038249,1738894240224,-317.0,0.00014137,2]
[352038251,1738894240233,-317.0,0.00014137,2]
[352038253,1738894240243,-317.0,0.00014137,2]
[352038255,1738894240253,-317.0,0.00014137,2]
[352038257,1738894240262,-317.0,0.00014137,2]
[352038259,1738894240271,-317.0,0.00014137,2]
[352038261,1738894240280,-317.0,0.00014137,2]
[352038263,1738894240291,-317.0,0.00014137,2]
[352038266,1738894240301,-266.0,0.00014137,2]
[352038268,1738894240311,-266.0,0.00014137,2]
[352038270,1738894240320,-266.0,0.00014137,2]
[352038271,1738894240329,-266.0,0.00014137,2]
[352038273,1738894240338,-266.0,0.00014137,2]
[352038275,1738894240348,-266.0,0.00014137,2]
[352038277,1738894240357,-266.0,0.00014137,2]
[352038279,1738894240366,-266.0,0.00014137,2]
[352038281,1738894240376,-266.0,0.00014137,2]
[352038284,1738894240386,-266.0,0.00014137,2]
[352038286,1738894240395,-266.0,0.00014137,2]
[352038288,1738894240404,-266.0,0.00014137,2]
[352038290,1738894240416,-266.0,0.00014137,2]
[352038291,1738894240425,-266.0,0.00014137,2]
[352038294,1738894240434,-317.0,0.00014137,2]
[352038295,1738894240444,-317.0,0.00014137,2]
[352038297,1738894240453,-317.0,0.00014137,2]
[352038299,1738894240462,-317.0,0.00014137,2]
[352038301,1738894240471,-317.0,0.00014137,2]
[352038303,1738894240480,-317.0,0.00014137,2]
[352038305,1738894240489,-317.0,0.00014137,2]
[352038307,1738894240499,-317.0,0.00014137,2]
[352038309,1738894240508,-317.0,0.00014137,2]
[352038311,1738894240517,-317.0,0.00014137,2]
[352038313,1738894240526,-317.0,0.00014137,2]
[352038315,1738894240535,-317.0,0.00014137,2]
[352038317,1738894240544,-317.0,0.00014137,2]
[352038319,1738894240553,-317.0,0.00014137,2]
[352038321,1738894240562,-266.0,0.00014137,2]
[352038323,1738894240572,-266.0,0.00014137,2]
[352038325,1738894240581,-266.0,0.00014137,2]
[352038327,1738894240591,-266.0,0.00014137,2]
[352038328,1738894240600,-266.0,0.00014137,2]
[352038329,1738894240609,-266.0,0.00014137,2]
[352038330,1738894240618,-266.0,0.00014137,2]
[352038331,1738894240628,-266.0,0.00014137,2]
[352038333,1738894240637,-266.0,0.00014137,2]
[352038335,1738894240647,-266.0,0.00014137,2]
[352038337,1738894240656,-266.0,0.00014137,2]
[352038339,1738894240667,-266.0,0.00014137,2]
[352038341,1738894240677,-266.0,0.00014137,2]
[352038343,1738894240686,-266.0,0.00014137,2]
[352038345,1738894240696,-151.547773,0.00014137,2]
[352038347,1738894240705,-249.863142,0.00014137,2]
[352038349,1738894240714,-249.863142,0.00014137,2]
[352038351,1738894240724,-151.0,0.00014137,2]
[352038353,1738894240734,-151.0,0.00014137,2]
[352038355,1738894240743,-151.0,0.00014137,2]
[352038357,1738894240753,-151.0,0.00014137,2]
[352038359,1738894240763,-151.0,0.00014137,2]
[352038362,1738894240772,-152.362473,0.00014137,2]
[352038364,1738894240781,-756.380816,0.00014137,2]
[352038365,1738894240790,-756.380816,0.00014137,2]
[352038368,1738894240800,-151.0,0.00014137,2]
[352038370,1738894240809,-151.0,0.00014137,2]
[352038372,1738894240819,-151.0,0.00014137,2]
[352038374,1738894240828,-151.0,0.00014137,2]
[352038376,1738894240837,-151.0,0.00014137,2]
[352038378,1738894240846,-152.921092,0.00014137,2]
[352038380,1738894240855,-151.0,0.00014137,2]
[352038382,1738894240865,-159.333615,0.00014137,2]
[352038383,1738894240874,-153.772533,0.00014137,2]
[352038386,1738894240884,-159.333615,0.00014137,2]
[352038387,1738894240894,-151.0,0.00014137,2]
[352038390,1738894240904,-151.0,0.00014137,2]
[352038391,1738894240919,-151.0,0.00014137,2]
[352038394,1738894240928,-280.577627,0.00014137,2]
[352038395,1738894240937,-151.0,0.00014137,2]
[352038397,1738894240947,-151.0,0.00014137,2]
[352038399,1738894240958,-153.875975,0.00014137,2]
[352038401,1738894240967,-293.59352,0.00014137,2]
[352038403,1738894240977,-151.0,0.00014137,2]
[352038405,1738894240986,-151.0,0.00014137,2]
[352038407,1738894240995,-151.0,0.00014137,2]
[352038409,1738894241005,-237.729893,0.0001414,2]
[352038411,1738894241015,-151.0,0.0001414,2]
[352038414,1738894241024,-317.0,0.00014147,2]
[352038416,1738894241034,-317.0,0.00014147,2]
[352038418,1738894241043,-317.0,0.00014147,2]
[352038420,1738894241052,-317.0,0.00014147,2]
[352038422,1738894241062,-317.0,0.00014147,2]
[352038424,1738894241072,-317.0,0.00014147,2]
[352038426,1738894241082,-317.0,0.00014147,2]
[352038428,1738894241091,-317.0,0.00014147,2]
[352038430,1738894241101,-317.0,0.00014147,2]
[352038432,1738894241111,-317.0,0.00014147,2]
[352038434,1738894241120,-317.0,0.00014147,2]
[352038436,1738894241130,-317.0,0.00014147,2]
[352038438,1738894241139,-317.0,0.00014147,2]
[352038440,1738894241149,-317.0,0.00014147,2]
[352038442,1738894241159,-317.0,0.00014147,2]
[352038444,1738894241170,-317.0,0.00014147,2]
[352038446,1738894241180,-317.0,0.00014147,2]
[352038448,1738894241189,-317.0,0.00014147,2]
[352038450,1738894241203,-317.0,0.00014147,2]
[352038452,1738894241213,-317.0,0.00014147,2]
[352038454,1738894241223,-317.0,0.00014147,2]
[352038456,1738894241233,-317.0,0.00014147,2]
[352038458,1738894241243,-317.0,0.00014147,2]
[352038460,1738894241252,-317.0,0.00014147,2]
[352038462,1738894241262,-266.0,0.00014147,2]
[352038464,1738894241272,-266.0,0.00014147,2]
[352038466,1738894241281,-266.0,0.00014147,2]
[352038469,1738894241291,-266.0,0.00014147,2]
[352038471,1738894241300,-266.0,0.00014147,2]
[352038473,1738894241310,-266.0,0.00014147,2]
[352038475,1738894241319,-266.0,0.00014147,2]
[352038477,1738894241330,-266.0,0.00014147,2]
[352038479,1738894241339,-266.0,0.00014147,2]
[352038481,1738894241347,-266.0,0.00014147,2]
[352038483,1738894241357,-266.0,0.00014147,2]
[352038485,1738894241367,-266.0,0.00014147,2]
[352038487,1738894241378,-266.0,0.00014147,2]
[352038489,1738894241387,-266.0,0.00014147,2]
[352038491,1738894241397,-317.0,0.00014147,2]
[352038493,1738894241407,-317.0,0.00014147,2]
[352038495,1738894241419,-317.0,0.00014147,2]
[352038497,1738894241429,-317.0,0.00014147,2]
[352038499,1738894241439,-317.0,0.00014147,2]
[352038501,1738894241448,-317.0,0.00014147,2]
[352038503,1738894241458,-317.0,0.00014147,2]
[352038505,1738894241467,-317.0,0.00014147,2]
[352038507,1738894241476,-317.0,0.00014147,2]
[352038509,1738894241486,-317.0,0.00014147,2]
[352038511,1738894241495,-317.0,0.00014147,2]
[352038513,1738894241504,-317.0,0.00014147,2]
[352038515,1738894241515,-317.0,0.00014147,2]
[352038517,1738894241525,-317.0,0.00014147,2]
[352038519,1738894241534,-266.0,0.00014147,2]
[352038522,1738894241544,-266.0,0.00014147,2]
[352038524,1738894241553,-266.0,0.00014147,2]
[352038525,1738894241563,-266.0,0.00014147,2]
[352038527,1738894241572,-266.0,0.00014147,2]
[352038529,1738894241581,-266.0,0.00014147,2]
[352038531,1738894241590,-266.0,0.00014147,2]
[352038533,1738894241599,-266.0,0.00014147,2]
[352038535,1738894241608,-266.0,0.00014147,2]
[352038549,1738894241726,-266.0,0.00014147,2]
[352038551,1738894241736,-266.0,0.00014147,2]
[352038553,1738894241746,-266.0,0.00014147,2]
[352038555,1738894241755,-266.0,0.00014147,2]
[352038557,1738894241764,-266.0,0.00014147,2]
[352038559,1738894241774,-151.0,0.00014147,2]
[352038561,1738894241783,-205.138242,0.00014147,2]
[352038563,1738894241793,-155.569206,0.00014147,2]
[352038565,1738894241802,-151.0,0.00014147,2]
[352038567,1738894241811,-151.311248,0.00014147,2]
[352038569,1738894241821,-151.0,0.00014147,2]
[352038572,1738894241831,-191.363553,0.00014147,2]
[352038574,1738894241840,-191.363553,0.00014147,2]
[352038576,1738894241850,-440.142385,0.00014147,2]
[352038578,1738894241859,-440.142385,0.00014147,2]
[352038580,1738894241868,-151.0,0.00014147,2]
[352038582,1738894241878,-151.0,0.00014147,2]
[352038584,1738894241887,-151.0,0.00014147,2]
[352038586,1738894241896,-151.0,0.00014147,2]
[352038588,1738894241906,-372.07485,0.00014147,2]
[352038590,1738894241917,-372.07485,0.00014147,2]
[352038592,1738894241926,-151.0,0.00014147,2]
[352038594,1738894241935,-153.772452,0.00014147,2]
[352038596,1738894241944,-151.0,0.00014147,2]
[352038598,1738894241954,-151.0,0.00014147,2]
[352038600,1738894241963,-151.0,0.00014148,2]
[352038602,1738894241973,-159.333615,0.00014148,2]
[352038604,1738894241983,-159.333615,0.00014148,2]
[352038606,1738894241993,-151.0,0.00014148,2]
[352038608,1738894242002,-151.0,0.00014148,2]
[352038610,1738894242011,-151.0,0.00014148,2]
[352038612,1738894242021,-151.0,0.00014148,2]
[352038614,1738894242031,-151.0,0.00014148,2]
[352038616,1738894242039,-317.0,0.00014148,2]
[352038618,1738894242049,-317.0,0.00014148,2]
[352038620,1738894242058,-317.0,0.00014148,2]
[352038622,1738894242067,-266.0,0.00014148,2]
[352038624,1738894242076,-266.0,0.00014148,2]
[352038626,1738894242085,-266.0,0.00014148,2]
[352038628,1738894242095,-266.0,0.00014148,2]
[352038630,1738894242104,-266.0,0.00014148,2]
[352038632,1738894242113,-266.0,0.00014148,2]
[352038634,1738894242123,-266.0,0.00014148,2]
[352038636,1738894242132,-266.0,0.00014148,2]
[352038638,1738894242141,-266.0,0.00014148,2]
[352038640,1738894242151,-266.0,0.00014148,2]
[352038642,1738894242161,-266.0,0.00014148,2]
[352038644,1738894242170,-266.0,0.00014148,2]
[352038646,1738894242179,-266.0,0.00014148,2]
[352038648,1738894242189,-8290.23,0.000142,2]
[352038650,1738894242200,-151.0,0.000142,2]
[352038652,1738894242212,-151.0,0.000142,2]
[352038654,1738894242222,-151.0,0.000142,2]
[352038656,1738894242232,-151.0,0.000142,2]